bitfinex/quotes_ETHUSD_20250625
["timestamp","ask_amount","ask_price","bid_price","bid_amount"]
[1750859746039,0.2048,2432.8,2432.5,4.11091195]
[1750859746921,0.2048,2432.8,2432.4,0.7917]
[1750859747122,0.2048,2432.8,2432.4,4.90285262]
[1750859747438,4.31529516,2432.8,2432.4,0.7917]
[1750859747611,4.11023147,2433.0,2431.7,13.97823156]
[1750859747612,4.11092263,2432.6,2431.8,0.7526]
[1750859747942,0.2048,2432.4,2432.2,4.11138959]
[1750859748543,0.8103,2432.7,2432.0,4.11180706]
[1750859748845,0.2048,2432.7,2432.3,0.7759]
[1750859749040,4.31554497,2432.7,2432.2,0.2048]
[1750859749544,0.2048,2432.7,2432.2,4.31629497]
[1750859749846,0.2048,2432.7,2432.3,4.11133495]
[1750859750137,0.2048,2432.7,2432.2,4.31625277]
[1750859750346,4.11059473,2432.8,2432.2,4.11145277]
[1750859750506,0.2048,2432.5,2432.2,4.11145277]
[1750859750704,0.2048,2432.5,2432.1,4.31643782]
[1750859750911,4.11092135,2432.6,2432.0,4.11171043]
[1750859751151,0.2048,2432.4,2432.0,4.11171043]
[1750859751449,0.2048,2432.4,2431.9,0.2048]
[1750859751450,0.2048,2432.4,2432.3,4.11133495]
[1750859752036,10.7712,2432.9,2432.4,4.11107647]
[1750859752237,0.2048,2432.7,2432.5,4.11099147]
[1750859752547,0.2048,2432.7,2432.4,4.11102999]
[1750859752848,0.2048,2432.7,2432.5,4.11087534]
[1750859753149,0.8268,2433.1,2432.3,4.8748148]
[1750859753359,1.0316,2433.1,2432.6,0.2048]
[1750859753515,0.2048,2432.9,2432.5,4.11089393]
[1750859753911,4.31517276,2432.9,2432.4,0.2048]
[1750859754213,0.2048,2432.9,2432.4,4.31596243]
[1750859754436,0.2048,2432.9,2432.4,4.31588582]
[1750859754634,4.31527063,2432.9,2432.4,0.2048]
[1750859754946,4.31527063,2432.9,2432.4,4.31594538]
[1750859755142,4.11059728,2432.8,2432.4,0.2048]
[1750859755314,0.2048,2432.9,2432.4,0.2048]
[1750859755511,0.8282,2433.4,2432.5,0.7611]
[1750859755849,10.0,2433.2,2432.8,0.2048]
[1750859756011,4.10984801,2433.2,2432.8,0.2048]
[1750859756439,0.2048,2433.3,2432.8,0.2048]
[1750859756626,10.8282,2433.4,2433.0,4.11000319]
[1750859756827,1.033,2433.4,2433.1,4.10988615]
[1750859757222,0.2048,2433.4,2433.0,4.31492962]
[1750859757419,0.2048,2433.4,2433.1,0.43149296]
[1750859757619,0.2048,2433.4,2433.2,4.10980189]
[1750859757818,0.2048,2433.4,2433.1,0.43149296]
[1750859758031,0.8017,2433.1,2432.4,0.7831]
[1750859758217,0.8017,2433.1,2432.8,4.11045399]
[1750859758648,10.0,2433.4,2433.0,4.11005609]
[1750859758824,14.10958431,2433.4,2432.5,4.11099691]
[1750859759155,4.10972319,2433.3,2432.8,4.11047267]
[1750859759751,11.90206711,2433.4,2433.0,4.11012673]
[1750859759919,11.90206711,2433.4,2432.5,4.11099226]
[1750859759920,14.10956558,2433.4,2432.9,4.11023278]
[1750859760114,0.8017,2433.5,2432.6,4.11077982]
[1750859760317,0.8017,2433.5,2432.6,4.11066557]
[1750859760537,4.10955567,2433.4,2432.9,4.11030044]
[1750859760849,4.10972186,2433.3,2432.8,4.11046578]
[1750859761152,2.477942,2433.5,2432.5,0.48942714]
[1750859761330,2.477942,2433.5,2432.7,4.11059308]
[1750859761331,10.0,2433.3,2432.7,4.11059308]
[1750859761657,2.477942,2433.5,2433.1,4.10995047]
[1750859762024,10.0,2433.4,2433.0,4.11007065]
[1750859762225,10.0,2433.4,2432.9,4.11021192]
[1750859762226,14.1094944,2433.4,2432.8,4.1103548]
[1750859762421,2.477942,2433.5,2432.8,0.41103548]
[1750859762643,14.10889822,2433.8,2433.0,4.11015207]
[1750859762835,10.0,2433.5,2433.0,4.11001875]
[1750859763035,21.35183954,2433.8,2433.1,4.10988818]
[1750859763251,7.243,2433.8,2433.4,4.10937624]
[1750859763549,7.243,2433.8,2433.2,4.10977244]
[1750859763550,14.10897231,2433.7,2433.2,4.10971828]
[1750859763774,10.0,2433.7,2432.9,4.8855289]
[1750859763955,10.0,2433.7,2433.2,4.10972092]
[1750859764250,14.10901178,2433.7,2433.2,4.10972092]
[1750859764549,6.9938851,2433.9,2432.8,4.52150731]
[1750859764550,0.8202,2433.9,2433.5,4.10920015]
[1750859764730,0.8202,2433.9,2433.6,4.10912959]
[1750859764926,0.8202,2433.9,2433.6,4.63461883]
[1750859765142,0.8202,2433.9,2433.6,4.10905957]
[1750859765331,0.8202,2433.9,2433.5,4.1092449]
[1750859765525,0.8202,2433.9,2433.3,0.8232]
[1750859765750,10.0,2434.0,2433.8,4.10880105]
[1750859766259,0.8017,2434.1,2434.0,4.10846343]
[1750859766455,0.8017,2434.1,2433.9,4.10855023]
[1750859766752,7.24,2434.2,2433.7,4.10890075]
[1750859766933,7.24,2434.2,2433.9,4.1086311]
[1750859767132,7.24,2434.2,2433.8,4.10870812]
[1750859767556,7.24,2434.2,2433.9,4.1086058]
[1750859767724,7.24,2434.2,2433.8,4.10871027]
[1750859767924,7.24,2434.2,2433.8,4.1087244]
[1750859768151,7.4448,2434.2,2433.9,4.10861]
[1750859768656,4.10830168,2434.1,2433.7,0.41089008]
[1750859768842,0.2048,2434.0,2433.5,0.2048]
[1750859769224,0.2048,2434.0,2433.9,4.10863223]
[1750859769431,7.237,2434.1,2434.0,4.10846343]
[1750859769631,0.7632,2434.3,2433.9,4.10858944]
[1750859769836,8.0002,2434.3,2434.1,4.10827738]
[1750859770151,0.2048,2434.4,2434.2,4.10812587]
[1750859770334,7.4418,2434.4,2434.1,4.10821566]
[1750859770528,0.2048,2434.4,2434.3,4.10795711]
[1750859770730,0.2048,2434.4,2434.2,4.10804087]
[1750859770937,0.2048,2434.4,2434.3,4.10795711]
[1750859771859,0.2048,2434.4,2434.1,4.10821862]
[1750859772236,0.55,2435.0,2434.3,0.7574]
[1750859772237,0.8101,2435.0,2434.3,0.7574]
[1750859772553,7.235,2435.7,2434.9,0.2048]
[1750859772762,7.235,2435.7,2434.8,0.7574]
[1750859772763,0.2048,2435.5,2435.2,4.10643428]
[1750859773067,0.8101,2435.8,2435.4,4.10594555]
[1750859773268,0.8101,2436.1,2435.8,4.10533327]
[1750859773449,0.8101,2436.1,2435.4,0.7574]
[1750859773450,0.8101,2436.1,2435.4,4.86347688]
[1750859773628,10.8101,2436.1,2435.7,4.10547345]
[1750859773830,0.8101,2436.1,2435.9,4.1052497]
[1750859774076,0.8101,2436.1,2435.4,0.7574]
[1750859774225,4.91511219,2436.1,2435.4,0.7574]
[1750859774587,4.10521963,2436.0,2435.4,0.7574]
[1750859774730,1.62540894,2436.0,2435.4,0.7574]
[1750859775071,7.233,2436.3,2435.6,4.1056738]
[1750859775239,4.10510017,2436.0,2435.4,0.7574]
[1750859775557,0.8101,2435.9,2435.5,4.10583602]
[1750859775971,0.8101,2435.9,2435.4,4.10602874]
[1750859776168,4.91537622,2435.9,2435.4,4.10602874]
[1750859776475,10.0,2436.2,2435.3,2.8094]
[1750859776476,7.231,2436.2,2435.3,2.8094]
[1750859776947,10.0,2436.1,2435.6,4.10567851]
[1750859777259,14.10497066,2436.1,2435.5,4.10586517]
[1750859777461,10.0,2436.1,2435.4,4.10610166]
[1750859777648,0.8101,2436.3,2435.4,4.10610166]
[1750859777849,12.14482154,2436.3,2435.7,4.10549815]
[1750859778433,12.14482154,2436.3,2435.8,4.10541663]
[1750859778631,8.0401,2436.3,2435.8,4.10541663]
[1750859778834,8.0401,2436.3,2435.9,4.10523027]
[1750859779033,8.0401,2436.3,2435.8,4.10537584]
[1750859779243,8.0401,2436.3,2435.3,6.91565997]
[1750859779446,8.0401,2436.3,2436.1,4.10490857]
[1750859779854,7.23,2436.3,2436.2,4.1047533]
[1750859780056,7.23,2436.3,2436.0,4.10492652]
[1750859780258,7.23,2436.3,2436.2,4.1047533]
[1750859780657,7.4430619,2436.5,2436.3,4.10448126]
[1750859780835,7.4430619,2436.5,2436.2,4.10469129]
[1750859781050,7.4430619,2436.5,2435.1,4.10647316]
[1750859781051,7.4430619,2436.5,2435.6,0.7837]
[1750859781273,7.4430619,2436.5,2435.9,4.10523563]
[1750859781566,7.4430619,2436.5,2436.0,4.1049894]
[1750859781772,7.4430619,2436.5,2435.6,6.94142519]
[1750859781773,7.4430619,2436.5,2436.1,4.1049218]
[1750859781774,0.2160619,2436.5,2436.1,4.1049218]
[1750859781970,0.2160619,2436.5,2435.8,4.10542737]
[1750859782145,0.2160619,2436.5,2435.6,2.8357]
[1750859782146,0.2160619,2436.5,2436.4,4.10441635]
[1750859782468,0.2160619,2436.5,2436.4,4.51485799]
[1750859782968,0.2160619,2436.5,2436.4,4.71965799]
[1750859784360,0.2160619,2436.5,2436.4,4.51485799]
[1750859784538,0.2160619,2436.5,2436.4,5.84185799]
[1750859784739,0.2160619,2436.5,2436.4,5.29185799]
[1750859784946,0.2160619,2436.5,2436.4,7.34285799]
[1750859786289,0.2160619,2436.5,2436.4,5.29185799]
[1750859787040,0.2160619,2436.5,2436.4,15.84185799]
[1750859787574,0.7612,2437.8,2436.4,18.18044164]
[1750859787769,0.7612,2437.8,2437.4,4.10262401]
[1750859788077,0.7612,2437.8,2437.4,4.10269345]
[1750859788277,21.17145888,2438.2,2437.2,4.89183801]
[1750859788278,0.7612,2438.1,2437.2,4.89183801]
[1750859788478,0.7612,2438.1,2437.1,4.10323745]
[1750859788479,10.7612,2438.1,2437.1,4.10323745]
[1750859788679,14.10197426,2437.9,2437.0,2.8592]
[1750859788879,14.10197426,2437.9,2437.3,4.10284083]
[1750859788880,4.10206884,2437.8,2437.3,4.10284083]
[1750859789051,4.10206884,2437.8,2437.0,0.8082]
[1750859789254,0.8265,2437.5,2436.9,4.10346645]
[1750859789454,0.8265,2437.5,2437.2,4.1029634]
[1750859789681,0.8265,2437.5,2437.0,4.10333723]
[1750859789979,0.8265,2437.5,2436.7,2.8592]
[1750859789980,4.10298267,2437.3,2436.7,4.10382731]
[1750859790187,4.10273962,2437.4,2436.7,4.1038542]
[1750859790384,4.10332739,2437.1,2436.3,0.8082]
[1750859790555,0.7612,2436.7,2436.2,4.10458682]
[1750859790750,0.7612,2436.7,2435.9,0.7656]
[1750859790751,0.7612,2436.7,2436.0,4.10509031]
[1750859791051,20.0642,2437.0,2436.2,4.10465375]
[1750859791299,4.10401776,2436.7,2436.1,4.10488878]
[1750859791580,4.10408837,2436.6,2436.1,4.10488878]
[1750859791782,4.10408837,2436.6,2435.7,2.05]
[1750859791783,0.7992,2436.5,2435.7,4.10554425]
[1750859791964,4.10450722,2436.4,2435.8,4.10542737]
[1750859792164,4.10462012,2436.3,2435.8,4.10542737]
[1750859792471,13.36846285,2436.4,2435.8,4.10536292]
[1750859792661,9.264,2436.4,2435.5,4.10589498]
[1750859792862,0.7992,2436.5,2436.1,4.10479058]
[1750859793281,4.90356594,2436.5,2435.5,4.10579218]
[1750859793448,4.90356594,2436.5,2435.3,0.8247]
[1750859793449,4.90348321,2436.5,2436.0,4.10500707]
[1750859793648,0.7992,2436.5,2435.3,10.8247]
[1750859793850,0.7992,2436.5,2436.0,4.10499119]
[1750859794081,0.7992,2436.5,2436.0,4.1050036]
[1750859794291,0.2048,2436.4,2435.9,0.2048]
[1750859794453,4.30930305,2436.4,2435.9,0.2048]
[1750859794654,4.10458783,2436.3,2435.9,0.2048]
[1750859794873,4.3092855,2436.4,2435.9,4.31005281]
[1750859795293,0.2048,2436.4,2435.9,4.31005281]
[1750859795486,0.2048,2436.4,2436.0,4.10506868]
[1750859795691,4.10484145,2436.2,2435.3,0.8247]
[1750859795893,0.2048,2436.0,2435.5,0.2048]
[1750859796507,0.2048,2436.0,2435.8,4.10534795]
[1750859796806,0.8061,2436.1,2435.8,4.10531611]
[1750859797879,0.8061,2436.1,2435.7,0.2048]
[1750859797880,0.8061,2436.1,2435.9,4.1052561]
[1750859798077,0.8061,2436.1,2435.8,4.10542737]
[1750859798423,0.8061,2436.1,2436.0,4.10509031]
[1750859798712,0.8061,2436.1,2435.9,4.10520716]
[1750859798895,0.8061,2436.1,2436.0,4.10509031]
[1750859799101,10.2048,2436.2,2436.1,4.1049218]
[1750859799399,7.9697,2436.4,2436.2,4.10470075]
[1750859799601,8.1745,2436.4,2436.0,0.2048]
[1750859800112,8.1745,2436.4,2436.0,4.30980151]
[1750859800989,12.27892297,2436.4,2436.0,0.2048]
[1750859801190,12.27892297,2436.4,2436.0,4.30986745]
[1750859801191,8.1745,2436.4,2436.0,4.30986745]
[1750859802014,8.1745,2436.4,2436.1,4.10483004]
[1750859802181,8.1745,2436.4,2436.0,4.30980798]
[1750859803224,8.1745,2436.4,2436.1,0.76157807]
[1750859803383,8.1745,2436.4,2436.2,4.10466365]
[1750859803584,8.1745,2436.4,2436.1,4.10483084]
[1750859803886,8.1745,2436.4,2436.2,4.10472629]
[1750859804311,12.07417385,2436.4,2435.9,4.10517939]
[1750859804513,4.30938864,2436.3,2435.8,0.2048]
[1750859804714,0.2048,2436.3,2435.9,4.10525448]
[1750859805412,4.30942421,2436.3,2435.8,4.31015913]
[1750859805612,4.10482889,2436.2,2435.6,4.10566522]
[1750859805916,0.2048,2436.0,2435.7,4.10546546]
[1750859806116,7.4118,2436.0,2435.7,4.10546546]
[1750859806349,7.4118,2436.0,2435.6,4.31046522]
[1750859806350,4.10527695,2435.9,2435.4,4.10602857]
[1750859806614,0.7566,2435.8,2435.4,0.2048]
[1750859806914,0.7881,2436.1,2435.7,4.10559592]
[1750859807117,0.2048,2436.0,2435.7,4.10550363]
[1750859807296,0.2048,2436.0,2435.5,0.2048]
[1750859807297,0.2048,2436.0,2435.6,4.10576449]
[1750859807487,0.2048,2436.0,2435.7,4.10559592]
[1750859807999,0.2048,2436.0,2435.7,4.10559365]
[1750859808905,0.7881,2436.1,2435.9,4.10525883]
[1750859809111,7.205,2436.2,2436.1,4.10489169]
[1750859809324,7.205,2436.2,2436.0,4.10496765]
[1750859809518,7.205,2436.2,2435.9,0.2048]
[1750859809724,0.2048,2436.1,2435.8,4.10534576]
[1750859809898,0.7665,2436.0,2435.7,4.31031957]
[1750859810233,0.7665,2436.0,2435.7,0.2048]
[1750859810535,0.7665,2436.0,2435.8,4.1054109]
[1750859810899,0.7665,2436.0,2435.7,0.2048]
[1750859811144,0.2048,2435.7,2435.3,4.10616748]
[1750859811435,0.2048,2435.6,2435.3,4.10619139]
[1750859811734,0.2048,2435.6,2435.2,4.10631593]
[1750859812031,0.2048,2435.6,2435.2,4.10635134]
[1750859812407,0.2048,2435.6,2435.2,4.10629269]
[1750859812607,0.2048,2435.6,2435.1,0.2048]
[1750859812820,0.2048,2435.6,2435.2,4.10635254]
[1750859813132,4.31061748,2435.6,2435.1,4.31137214]
[1750859813337,0.8243,2435.5,2435.1,4.31137214]
[1750859813644,4.10637275,2435.3,2435.0,10.0]
[1750859813871,14.93090753,2435.1,2435.0,10.0]
[1750859814896,15.48090753,2435.1,2435.0,10.0]
[1750859815936,11.3743,2435.1,2435.0,10.0]
[1750859816110,15.48090753,2435.1,2435.0,10.0]
[1750859816436,11.3743,2435.1,2435.0,10.0]
[1750859817507,20.0653,2435.1,2435.0,10.0]
[1750859817932,10.8243,2435.1,2435.0,10.0]
[1750859818130,20.0663,2435.1,2435.0,10.0]
[1750859818831,10.8243,2435.1,2435.0,10.0]
[1750859819027,20.0653,2435.1,2435.0,10.0]
[1750859819246,2.04,2435.4,2435.0,14.10677618]
[1750859819447,10.0,2435.3,2435.2,4.10643889]
[1750859819639,17.2,2435.3,2435.2,4.10643889]
[1750859820259,17.2,2435.3,2435.0,10.0]
[1750859820260,9.848,2435.7,2435.0,14.10672677]
[1750859820426,0.81763,2436.0,2435.1,4.93450753]
[1750859820427,0.765,2436.0,2435.1,4.93450753]
[1750859820633,7.2,2435.9,2435.8,4.10531573]
[1750859821022,12.805,2436.0,2435.9,4.10525883]
[1750859821226,10.005,2436.0,2435.7,4.10553038]
[1750859821430,10.005,2436.0,2435.1,0.8279]
[1750859821624,10.005,2436.0,2435.5,4.10583522]
[1750859822059,20.005,2436.0,2435.5,4.10583522]
[1750859822232,24.11017093,2436.0,2435.1,0.8279]
[1750859822553,4.65534581,2435.9,2435.4,4.10609058]
[1750859822760,14.11010788,2436.0,2435.5,4.1058758]
[1750859822935,7.198,2435.9,2435.7,4.10551368]
[1750859823336,7.198,2435.9,2435.6,4.10574917]
[1750859823537,7.198,2435.9,2435.7,4.10552383]
[1750859823737,7.198,2435.9,2435.1,0.8279]
[1750859823925,4.89690565,2435.8,2435.3,4.10625399]
[1750859824445,4.89690565,2435.8,2435.1,4.10654462]
[1750859824446,0.7914,2435.8,2435.1,4.10660753]
[1750859824648,0.7914,2435.8,2435.0,10.0]
[1750859824649,7.197,2435.7,2435.6,4.10562733]
[1750859825156,7.197,2436.0,2435.6,4.10567079]
[1750859825360,7.197,2436.0,2435.7,4.10559308]
[1750859825755,7.197,2436.0,2435.6,4.10567286]
[1750859825926,7.9593,2436.0,2435.6,4.10567286]
[1750859826391,7.9593,2436.0,2435.8,4.10527962]
[1750859826523,0.7623,2436.0,2435.9,4.10525883]
[1750859826724,0.7623,2436.5,2436.1,4.10481501]
[1750859826946,0.7623,2436.5,2435.8,0.774]
[1750859826947,0.7623,2436.5,2436.3,4.10446643]
[1750859827261,10.0,2436.5,2436.3,4.10446643]
[1750859827425,10.0,2436.6,2436.4,4.10441635]
[1750859827629,10.0,2436.6,2436.3,4.10451855]
[1750859828260,10.0,2436.6,2436.4,4.10441276]
[1750859828463,10.0,2436.6,2436.2,4.10471289]
[1750859828765,4.10341142,2437.0,2435.7,2.04]
[1750859828766,0.7904,2437.0,2436.1,0.783]
[1750859828963,14.10374954,2436.8,2436.3,4.1044833]
[1750859829174,0.2048,2436.7,2436.4,4.10440479]
[1750859829637,0.2048,2436.7,2436.4,4.10441635]
[1750859830050,0.7904,2437.0,2436.1,0.783]
[1750859830257,0.2048,2437.0,2436.8,4.10366101]
[1750859830466,0.7671,2437.3,2436.9,4.10357421]
[1750859830776,11.29558647,2437.5,2437.0,4.10331863]
[1750859830979,10.0,2437.4,2437.0,4.30811863]
[1750859831274,11.50038647,2437.5,2437.1,4.10315033]
[1750859831275,7.3978,2437.5,2437.1,4.10315033]
[1750859831563,10.0,2437.4,2437.0,4.30812569]
[1750859831729,10.0,2437.4,2436.6,0.7534]
[1750859831932,0.2048,2437.3,2436.9,4.30827097]
[1750859832133,0.2048,2437.3,2437.0,4.10338329]
[1750859832783,0.2048,2437.3,2436.9,0.2048]
[1750859832963,0.2048,2437.3,2437.1,4.10319322]
[1750859833280,0.2048,2437.3,2436.9,0.2048]
[1750859833780,0.2048,2437.3,2436.9,4.30837057]
[1750859833980,0.2048,2437.3,2436.9,4.3082891]
[1750859834286,0.2048,2437.3,2437.0,4.10330253]
[1750859834491,0.2048,2437.3,2437.0,4.1033817]
[1750859834661,0.2048,2437.3,2437.1,4.10311311]
[1750859835061,0.55,2437.4,2436.6,0.7534]
[1750859835381,0.2048,2437.0,2436.8,4.10357512]
[1750859835681,14.10264464,2437.5,2437.0,4.10334301]
[1750859835986,0.2048,2437.2,2437.0,4.10334301]
[1750859836685,0.2048,2437.2,2437.0,4.10339589]
[1750859836855,0.2048,2437.2,2437.1,4.10323745]
[1750859837051,0.2048,2437.2,2436.8,0.2048]
[1750859837247,0.2048,2437.2,2436.8,4.30852194]
[1750859837658,0.2048,2437.2,2437.1,4.10323745]
[1750859838381,10.2048,2437.5,2437.0,0.2048]
[1750859838698,10.2048,2437.5,2437.1,4.10313851]
[1750859838908,10.2048,2437.5,2437.2,4.10295005]
[1750859839458,0.2048,2437.5,2437.4,4.10273241]
[1750859839658,4.10201764,2437.9,2437.3,4.10279953]
[1750859839958,0.7977,2438.0,2437.5,4.10248878]
[1750859839959,0.2048,2437.7,2437.5,4.10248878]
[1750859840382,0.2048,2437.7,2437.4,4.10265304]
[1750859840578,0.2048,2437.7,2437.2,0.2048]
[1750859840790,4.30713872,2437.7,2437.2,4.30780274]
[1750859840994,0.2048,2437.7,2437.2,4.30780274]
[1750859841165,0.2048,2437.7,2437.4,4.10259177]
[1750859841485,0.7977,2438.0,2437.7,4.10211182]
[1750859841486,1.0025,2438.0,2437.7,4.10211182]
[1750859841668,1.0025,2438.0,2437.6,4.30710399]
[1750859842195,0.2048,2438.0,2437.7,4.10220031]
[1750859842367,0.2048,2438.0,2437.9,4.10189097]
[1750859842568,0.2048,2438.3,2438.0,4.10164128]
[1750859842790,0.2048,2438.3,2437.8,0.2048]
[1750859842791,0.2048,2438.3,2437.8,4.30680614]
[1750859842994,10.2048,2438.3,2437.9,4.10182414]
[1750859843367,10.2048,2438.3,2437.8,0.2048]
[1750859843558,14.30602206,2438.3,2437.8,4.30678826]
[1750859843760,10.2048,2438.3,2437.8,0.2048]
[1750859843991,14.30603455,2438.3,2437.8,0.2048]
[1750859844289,4.10152299,2438.2,2437.8,0.2048]
[1750859844590,10.2048,2438.3,2437.8,0.2048]
[1750859845091,4.1016033,2438.1,2437.8,0.2048]
[1750859845291,4.10149287,2438.2,2437.8,0.2048]
[1750859845492,10.2048,2438.3,2437.8,0.2048]
[1750859845792,4.10157589,2438.1,2437.8,0.2048]
[1750859846193,4.10172591,2438.0,2437.8,0.2048]
[1750859846413,0.7992,2438.1,2437.3,2.7791]
[1750859846594,0.2048,2438.0,2437.6,0.2048]
[1750859846810,0.2048,2438.0,2437.3,2.7791]
[1750859846811,14.10132206,2438.3,2437.7,4.10207476]
[1750859846980,4.30622085,2438.2,2437.8,0.2048]
[1750859847166,0.2048,2438.2,2437.9,4.10184345]
[1750859847371,10.0,2438.5,2438.0,4.10163756]
[1750859847572,0.2048,2438.4,2438.0,4.30644271]
[1750859848094,10.0,2438.3,2438.0,0.2048]
[1750859848265,10.0,2438.3,2438.0,4.30644294]
[1750859848702,10.0,2438.3,2438.0,0.2048]
[1750859849603,10.0,2438.3,2438.0,4.30648061]
[1750859850001,10.0,2438.3,2438.0,4.30636596]
[1750859850202,0.2048,2438.4,2437.9,0.7521]
[1750859850405,7.3798,2438.7,2438.3,4.10121326]
[1750859850583,10.0,2438.6,2438.2,0.2048]
[1750859850779,10.0,2438.6,2438.4,4.10103017]
[1750859850977,0.2048,2438.7,2438.5,4.10072996]
[1750859851191,1.0010619,2438.9,2438.0,4.10172272]
[1750859851499,10.2160619,2438.9,2438.6,0.2048]
[1750859851710,10.2160619,2438.9,2438.6,4.30550374]
[1750859852122,10.2160619,2438.9,2438.6,0.2048]
[1750859852420,14.31638755,2438.9,2438.6,0.2048]
[1750859852712,10.0,2438.7,2438.4,0.2048]
[1750859853186,14.10055654,2438.7,2438.4,0.2048]
[1750859853389,14.90055654,2438.7,2438.4,0.2048]
[1750859853708,10.8,2438.7,2438.4,0.2048]
[1750859854075,14.90057718,2438.7,2438.4,0.2048]
[1750859854376,14.90059934,2438.7,2438.4,0.2048]
[1750859854702,0.2048,2438.6,2438.2,0.2048]
[1750859854874,0.2048,2438.6,2438.2,4.30618194]
[1750859855514,4.30555042,2438.6,2438.2,0.2048]
[1750859855819,0.2048,2438.6,2438.2,0.2048]
[1750859855988,0.2048,2438.6,2438.2,4.3061069]
[1750859856571,0.2048,2438.6,2438.2,0.2048]
[1750859856775,4.30578115,2438.5,2438.0,4.30644424]
[1750859857013,7.3758,2438.5,2438.1,4.10155368]
[1750859857598,7.3758,2438.5,2438.0,0.2048]
[1750859857799,4.10109325,2438.4,2438.0,0.2048]
[1750859858523,4.10122572,2438.3,2438.0,0.2048]
[1750859858679,7.3758,2438.5,2438.0,0.2048]
[1750859858996,4.10114639,2438.4,2438.0,0.2048]
[1750859859608,4.10123045,2438.3,2438.0,0.2048]
[1750859859812,0.2048,2438.2,2437.9,4.10187626]
[1750859860328,11.47327664,2438.2,2437.7,0.2048]
[1750859860477,4.10163725,2438.1,2437.7,0.2048]
[1750859860912,4.10177298,2438.0,2437.5,4.10250796]
[1750859861118,0.2048,2437.9,2437.5,4.30730796]
[1750859861438,0.2048,2437.9,2437.7,4.10213127]
[1750859861723,7.167,2438.2,2437.8,4.10205923]
[1750859861903,0.2048,2438.1,2437.8,4.10205923]
[1750859862208,0.2048,2438.1,2437.7,4.30693771]
[1750859862401,0.2048,2438.1,2437.7,0.2048]
[1750859862583,0.2048,2438.1,2437.7,4.30695983]
[1750859863700,4.30636798,2438.1,2437.7,0.2048]
[1750859863898,4.10180656,2438.0,2437.7,0.2048]
[1750859864423,0.2048,2438.1,2437.7,0.2048]
[1750859864720,5.47441435,2438.0,2437.5,4.10253762]
[1750859864896,0.2048,2437.6,2437.5,4.10253762]
[1750859865101,0.2048,2437.6,2437.4,4.1026863]
[1750859865307,0.2048,2437.6,2437.5,4.1025641]
[1750859865620,4.92440201,2438.0,2437.5,4.1025641]
[1750859865788,0.2048,2437.8,2437.6,4.10239579]
[1750859866188,0.2048,2437.8,2437.5,4.10247947]
[1750859866392,0.2048,2437.8,2437.4,4.3074848]
[1750859866895,0.2048,2437.8,2437.6,4.10238569]
[1750859867301,0.2048,2437.8,2437.5,4.10247543]
[1750859867508,0.2048,2437.8,2437.6,4.1023628]
[1750859868312,0.2048,2437.8,2437.5,4.10248472]
[1750859868708,0.2048,2437.8,2437.6,4.10236423]
[1750859869025,0.2048,2437.8,2437.5,4.10248096]
[1750859869227,0.2048,2437.8,2437.0,0.8177]
[1750859869228,7.162,2437.7,2437.3,4.10274071]
[1750859869527,7.162,2437.7,2437.5,4.1024204]
[1750859869723,10.8226,2438.0,2437.0,0.8177]
[1750859869923,7.162,2437.9,2437.7,4.1022113]
[1750859870105,7.162,2437.9,2437.6,4.30711382]
[1750859870308,7.162,2437.9,2437.6,0.2048]
[1750859870514,11.2639167,2437.9,2437.6,0.2048]
[1750859871323,7.162,2437.9,2437.6,0.2048]
[1750859871723,7.162,2437.9,2437.6,4.30719495]
[1750859872630,7.162,2437.9,2437.6,0.2048]
[1750859872829,7.162,2437.9,2437.7,4.10214096]
[1750859873236,7.112,2437.9,2437.7,4.10214096]
[1750859873421,7.112,2437.9,2437.6,0.2048]
[1750859873622,7.112,2437.9,2437.6,4.30719364]
[1750859873809,7.112,2437.9,2437.6,0.2048]
[1750859874208,0.8296,2437.8,2437.2,4.85490526]
[1750859874408,0.2048,2437.7,2437.5,4.10256372]
[1750859874712,0.2048,2437.7,2437.4,4.102647]
[1750859875951,0.2048,2437.7,2437.5,4.10256327]
[1750859876306,0.2048,2437.7,2437.3,0.2048]
[1750859876619,7.157,2437.6,2437.3,4.307619]
[1750859877030,7.157,2437.6,2437.4,4.10273176]
[1750859877225,7.157,2437.6,2437.3,4.30762125]
[1750859877446,10.7966,2437.5,2437.1,4.10322224]
[1750859877621,0.7966,2437.5,2437.1,4.10322224]
[1750859877820,7.156,2437.4,2437.0,0.7676]
[1750859878010,7.156,2437.4,2437.1,4.10309573]
[1750859878210,7.156,2437.4,2437.2,4.10300995]
[1750859878440,7.156,2437.4,2437.1,4.10317614]
[1750859878635,7.156,2437.4,2437.2,4.10304393]
[1750859880133,7.156,2437.4,2437.1,4.10314567]
[1750859880333,7.156,2437.4,2437.2,4.10303606]
[1750859880844,0.7966,2437.5,2437.3,4.10290075]
[1750859881049,7.155,2437.5,2437.3,4.10281278]
[1750859881271,7.155,2437.5,2437.1,4.10308245]
[1750859881414,7.155,2437.5,2437.2,4.10295948]
[1750859881617,7.155,2437.5,2437.1,4.10308245]
[1750859881618,7.155,2437.5,2437.1,4.10315211]
[1750859881930,0.7911,2437.4,2437.1,4.10315211]
[1750859882350,0.7911,2437.4,2437.2,4.10306742]
[1750859882655,11.58571,2437.4,2436.7,4.86934237]
[1750859882968,11.58571,2437.4,2436.4,0.7882]
[1750859883124,5.68851542,2437.4,2436.9,4.10348127]
[1750859883622,0.7911,2437.4,2436.4,0.7882]
[1750859883820,0.7911,2437.4,2437.1,4.10323185]
[1750859884019,10.7913,2437.6,2437.2,4.10304753]
[1750859884557,10.7913,2437.6,2437.1,4.10314601]
[1750859884764,0.7913,2437.6,2436.9,0.7781]
[1750859884918,4.10332617,2437.1,2436.6,4.10398054]
[1750859885125,4.86471104,2437.0,2436.5,4.10413076]
[1750859885335,4.86471104,2437.0,2436.3,4.10458482]
[1750859885336,4.10365209,2436.9,2436.3,4.10458482]
[1750859885539,4.10379397,2436.8,2436.3,4.10448648]
[1750859885738,0.7613,2436.6,2436.2,4.10466325]
[1750859886182,0.7613,2436.6,2436.3,4.10454631]